bitfinex/quotes_BTCUSD_20241128
["timestamp","ask_amount","ask_price","bid_price","bid_amount"]
[1732818388384,0.250818,95221.0,95220.0,0.50000223]
[1732818388604,0.55881215,95221.0,95220.0,0.50000223]
[1732818389073,0.55881215,95221.0,95220.0,0.35312223]
[1732818389301,0.66164361,95221.0,95220.0,0.35312223]
[1732818389754,0.66164361,95221.0,95220.0,0.35412223]
[1732818389972,0.67064361,95221.0,95220.0,0.29111023]
[1732818390195,0.67064361,95221.0,95220.0,0.17857223]
[1732818390649,0.67064361,95221.0,95220.0,0.10047223]
[1732818390856,0.67064361,95221.0,95220.0,0.05018523]
[1732818391077,0.67864361,95221.0,95220.0,0.00817723]
[1732818391514,0.67864361,95221.0,95220.0,2.3e-07]
[1732818391803,0.64363,95210.0,95209.0,0.00047349]
[1732818392032,0.87230667,95210.0,95209.0,0.00047349]
[1732818393409,0.87230667,95210.0,95209.0,0.00053511]
[1732818394998,0.89030667,95210.0,95209.0,0.00053511]
[1732818395220,0.88130667,95210.0,95209.0,0.00053511]
[1732818395887,0.89030667,95210.0,95209.0,0.00053511]
[1732818396554,0.88130667,95210.0,95209.0,0.00053511]
[1732818396775,0.89030667,95210.0,95209.0,0.00053511]
[1732818397230,0.88130667,95210.0,95209.0,0.00225831]
[1732818397914,0.77847521,95210.0,95209.0,0.00225831]
[1732818398853,0.78747521,95210.0,95209.0,0.00225831]
[1732818399079,0.77847521,95210.0,95209.0,0.00225831]
[1732818399324,0.78747521,95210.0,95209.0,0.00225831]
[1732818399559,0.80872789,95210.0,95209.0,0.00225831]
[1732818399793,0.90255935,95210.0,95209.0,0.00225831]
[1732818400009,0.91155935,95210.0,95209.0,0.00225831]
[1732818401172,0.94358588,95210.0,95209.0,0.00225831]
[1732818401514,0.91155935,95210.0,95209.0,0.00225831]
[1732818401751,0.80872789,95210.0,95209.0,0.00225831]
[1732818403671,0.84075494,95210.0,95209.0,0.00225831]
[1732818403890,0.67012789,95210.0,95209.0,0.00225831]
[1732818405059,0.81461118,95210.0,95209.0,0.00225831]
[1732818406927,0.84664536,95210.0,95209.0,0.00225831]
[1732818407146,0.94947682,95210.0,95209.0,0.00225831]
[1732818415824,0.96592157,95210.0,95209.0,0.00225831]
[1732818417828,0.86309011,95210.0,95209.0,0.00225831]
[1732818418963,0.85760682,95210.0,95209.0,0.00225831]
[1732818423498,0.84760682,95210.0,95209.0,0.00225831]
[1732818423718,0.72860682,95210.0,95209.0,0.00225831]
[1732818423924,0.71860682,95210.0,95209.0,0.00225831]
[1732818424142,0.82143828,95210.0,95209.0,0.00225831]
[1732818425440,0.25790939,95210.0,95209.0,0.04765831]
[1732818425639,0.15506418,95210.0,95209.0,0.12405831]
[1732818425868,0.12303,95210.0,95209.0,0.12405831]
[1732818426108,0.10503,95210.0,95209.0,0.12405831]
[1732818426600,0.12303,95210.0,95209.0,0.12405831]
[1732818426855,0.11403,95210.0,95209.0,0.12405831]
[1732818427070,0.25503,95210.0,95209.0,0.12405831]
[1732818428008,0.10803,95210.0,95209.0,0.12405831]
[1732818428470,0.11103,95210.0,95209.0,0.12405831]
[1732818429172,0.006,95210.0,95209.0,0.22909031]
[1732818429389,0.11103,95210.0,95209.0,0.12405831]
[1732818433265,0.21387521,95210.0,95209.0,0.12405831]
[1732818433480,0.21387521,95210.0,95209.0,0.00225831]
[1732818433481,0.38687521,95210.0,95209.0,0.00225831]
[1732818433929,0.40749011,95210.0,95209.0,0.00225831]
[1732818434941,0.38087521,95210.0,95209.0,0.00225831]
[1732818435164,0.38687521,95210.0,95209.0,0.00225831]
[1732818435377,0.39587521,95210.0,95209.0,0.00225831]
[1732818440805,0.41714442,95210.0,95209.0,0.00225831]
[1732818443911,0.55205013,95210.0,95209.0,0.00225831]
[1732818444831,0.53078092,95210.0,95209.0,0.00225831]
[1732818445472,0.42794946,95210.0,95209.0,0.00225831]
[1732818445719,0.43794946,95210.0,95209.0,0.00225831]
[1732818446155,0.48614946,95210.0,95209.0,0.00225831]
[1732818450188,0.50669744,95210.0,95209.0,0.00225831]
[1732818456597,0.50669744,95210.0,95209.0,3.1e-07]
[1732818456598,0.59879744,95210.0,95209.0,3.1e-07]
[1732818456816,0.7016289,95210.0,95209.0,3.1e-07]
[1732818457319,0.6956289,95210.0,95209.0,3.1e-07]
[1732818457556,0.7046289,95210.0,95209.0,3.1e-07]
[1732818457789,0.6956289,95210.0,95209.0,3.1e-07]
[1732818458012,0.7046289,95210.0,95209.0,3.1e-07]
[1732818459787,0.71011248,95210.0,95209.0,3.1e-07]
[1732818479820,0.71011248,95210.0,95201.0,0.0017216]
[1732818479821,0.115039,95202.0,95201.0,9.1e-07]
[1732818480040,0.52578406,95202.0,95201.0,9.1e-07]
[1732818481020,0.53478406,95202.0,95201.0,9.1e-07]
[1732818482620,0.54278406,95202.0,95201.0,9.1e-07]
[1732818483364,0.67341997,95202.0,95201.0,9.1e-07]
[1732818484442,0.53391997,95202.0,95201.0,9.1e-07]
[1732818484698,0.54291997,95202.0,95201.0,9.1e-07]
[1732818485351,0.53491997,95202.0,95201.0,9.1e-07]
[1732818485787,0.54391997,95202.0,95201.0,9.1e-07]
[1732818486005,0.5603668,95202.0,95201.0,9.1e-07]
[1732818489008,0.5503668,95202.0,95201.0,9.1e-07]
[1732818489235,0.5603668,95202.0,95201.0,9.1e-07]
[1732818489944,0.58130443,95202.0,95201.0,9.1e-07]
[1732818491773,0.5532109,95202.0,95201.0,9.1e-07]
[1732818492027,0.5632109,95202.0,95201.0,9.1e-07]
[1732818494330,0.5532109,95202.0,95201.0,9.1e-07]
[1732818494574,0.4603853,95202.0,95201.0,9.1e-07]
[1732818494799,0.43944767,95202.0,95201.0,9.1e-07]
[1732818495063,0.42300084,95202.0,95201.0,9.1e-07]
[1732818498933,0.40000084,95202.0,95201.0,0.12850091]
[1732818499815,0.39100084,95202.0,95201.0,0.12850091]
[1732818500042,0.40000084,95202.0,95201.0,0.12850091]
[1732818500260,0.39100084,95202.0,95201.0,0.12850091]
[1732818500479,0.39900084,95202.0,95201.0,0.12850091]
[1732818501365,0.39000084,95202.0,95201.0,0.12850091]
[1732818501584,0.41652044,95202.0,95201.0,0.12850091]
[1732818503350,0.38444619,95202.0,95201.0,0.12850091]
[1732818504954,0.36292659,95202.0,95201.0,0.12850091]
[1732818506744,0.11008138,95202.0,95201.0,0.13850091]
[1732818506963,0.06008138,95202.0,95201.0,0.13850091]
[1732818507641,0.05508138,95202.0,95201.0,0.13850091]
[1732818507893,0.05208138,95202.0,95201.0,0.13850091]
[1732818508114,0.05408138,95202.0,95201.0,0.13850091]
[1732818508337,0.04708138,95202.0,95201.0,0.13850091]
[1732818510398,0.04708138,95202.0,95201.0,0.32613111]
[1732818512682,0.04708138,95202.0,95201.0,0.41989421]
[1732818513147,0.04708138,95202.0,95201.0,0.32613111]
[1732818513371,0.04708138,95202.0,95201.0,0.41987312]
[1732818513602,0.04708138,95202.0,95201.0,0.32613111]
[1732818514048,0.04794298,95202.0,95201.0,0.32613111]
[1732818514927,0.04714417,95202.0,95201.0,0.32613111]
[1732818521017,0.29998938,95202.0,95201.0,0.18763111]
[1732818521247,0.32298938,95202.0,95201.0,9.1e-07]
[1732818521934,0.32598938,95202.0,95201.0,9.1e-07]
[1732818522394,0.32298938,95202.0,95201.0,9.1e-07]
[1732818523552,0.32798938,95202.0,95201.0,9.1e-07]
[1732818523779,0.32298938,95202.0,95201.0,9.1e-07]
[1732818524003,0.32798938,95202.0,95201.0,9.1e-07]
[1732818524213,0.32298938,95202.0,95201.0,9.1e-07]
[1732818524696,0.32698938,95202.0,95201.0,9.1e-07]
[1732818524926,0.32898938,95202.0,95201.0,9.1e-07]
[1732818525622,0.32698938,95202.0,95201.0,9.1e-07]
[1732818525877,0.32998938,95202.0,95201.0,9.1e-07]
[1732818534490,0.32298938,95202.0,95201.0,9.1e-07]
[1732818534784,0.33598938,95202.0,95201.0,9.1e-07]
[1732818535249,0.33098938,95202.0,95201.0,9.1e-07]
[1732818535492,0.30798938,95202.0,95201.0,9.1e-07]
[1732818535735,0.31098938,95202.0,95201.0,9.1e-07]
[1732818536198,0.30298938,95202.0,95201.0,9.1e-07]
[1732818536420,0.30798938,95202.0,95201.0,9.1e-07]
[1732818543184,0.30798938,95202.0,95201.0,0.08860091]
[1732818543185,0.05514417,95202.0,95201.0,0.08860091]
[1732818544156,0.04714417,95202.0,95201.0,0.08860091]
[1732818544369,0.05014417,95202.0,95201.0,0.08860091]
[1732818544598,0.05214417,95202.0,95201.0,0.08860091]
[1732818545712,0.04914417,95202.0,95201.0,0.08860091]
[1732818547022,0.04714417,95202.0,95201.0,0.22961389]
[1732818547243,0.04714417,95202.0,95201.0,0.08860091]
[1732818547476,0.04814417,95202.0,95201.0,0.08860091]
[1732818548345,0.04814417,95202.0,95201.0,0.27661868]
[1732818549265,0.04814417,95202.0,95201.0,0.32561868]
[1732818549491,0.04814417,95202.0,95201.0,0.13760091]
[1732818550412,0.04714417,95202.0,95201.0,0.13760091]
[1732818550636,0.04814417,95202.0,95201.0,0.13760091]
[1732818551078,0.04714417,95202.0,95201.0,0.13760091]
[1732818551299,0.04689385,95202.0,95201.0,0.01000091]
[1732818551526,0.04689385,95202.0,95201.0,0.19795143]
[1732818551736,0.04689385,95202.0,95201.0,0.01000091]
[1732818554480,0.04689385,95202.0,95201.0,0.19795143]
[1732818555667,0.04689385,95202.0,95201.0,0.006012]
[1732818558664,0.04689385,95202.0,95201.0,0.1940324]
[1732818561461,0.04689385,95202.0,95201.0,0.1957556]
[1732818562623,0.04689385,95202.0,95201.0,0.0077352]
[1732818565641,0.04689385,95202.0,95201.0,0.19585987]
[1732818565865,0.04689385,95202.0,95201.0,0.0077352]
[1732818573920,0.04689385,95202.0,95201.0,0.37308283]
[1732818574149,0.04689385,95202.0,95201.0,0.14450713]
[1732818582611,0.04689385,95202.0,95201.0,0.1379352]
[1732818582843,0.04689385,95202.0,95201.0,0.14450675]
[1732818583761,0.04689385,95202.0,95201.0,0.01430675]
[1732818584441,0.04689385,95202.0,95201.0,0.0077352]
[1732818586815,0.04621646,95202.0,95201.0,0.0077352]
[1732818587999,0.04621646,95202.0,95201.0,0.0549352]
[1732818588228,0.04621646,95202.0,95201.0,0.1381352]
[1732818588461,0.04621646,95202.0,95201.0,0.14470696]
[1732818589369,0.04621646,95202.0,95201.0,0.1381352]
[1732818589598,0.04621646,95202.0,95201.0,0.14470692]
[1732818591683,0.04621646,95202.0,95201.0,0.42707]
[1732818592391,0.04621646,95202.0,95201.0,0.14470692]
[1732818592624,0.04621646,95202.0,95201.0,0.15522141]
[1732818596191,0.04621646,95202.0,95201.0,0.1381352]
[1732818596433,0.04621646,95202.0,95201.0,0.25806593]
[1732818597604,0.04621646,95202.0,95201.0,0.26806593]
[1732818598089,0.02256233,95202.0,95201.0,0.26806593]
[1732818598541,0.02156233,95202.0,95201.0,0.26806593]
[1732818598786,0.02256233,95202.0,95201.0,0.26806593]
[1732818599017,0.02356233,95202.0,95201.0,0.26806593]
[1732818601760,0.02356233,95202.0,95201.0,0.25098041]
[1732818601987,0.02356233,95202.0,95201.0,0.26806348]
[1732818602731,0.02356233,95202.0,95201.0,0.28120431]
[1732818604530,0.00299751,95202.0,95201.0,0.28120431]
[1732818604740,0.00299751,95202.0,95201.0,0.70801289]
[1732818606737,0.00299751,95202.0,95201.0,0.29219726]
[1732818607599,0.00299751,95202.0,95201.0,0.27905643]
[1732818608493,0.00299751,95202.0,95201.0,0.26854377]
[1732818608718,0.00299751,95202.0,95201.0,0.27905642]
[1732818609626,0.00299751,95202.0,95201.0,0.29219724]
[1732818613750,0.00299751,95202.0,95201.0,0.26197336]
[1732818614516,0.00299751,95202.0,95201.0,0.27511418]
[1732818614748,0.00299751,95202.0,95201.0,0.28168459]
[1732818614968,0.00299751,95202.0,95201.0,0.29219724]
[1732818615406,0.00299751,95202.0,95201.0,0.03795908]
[1732818615628,0.12869751,95202.0,95201.0,0.02481826]
[1732818615855,0.12869751,95202.0,95201.0,0.14856123]
[1732818616088,0.12869751,95202.0,95201.0,0.0077352]
[1732818616774,0.12769751,95202.0,95201.0,0.0077352]
[1732818616972,0.12869751,95202.0,95201.0,0.0077352]
[1732818617195,0.12769751,95202.0,95201.0,0.0077352]
[1732818617715,0.12669751,95202.0,95201.0,0.0017232]
[1732818617965,0.40254272,95202.0,95201.0,0.0017232]
[1732818618645,0.40554272,95202.0,95201.0,0.0017232]
[1732818619094,0.40254272,95202.0,95201.0,0.0017232]
[1732818619311,0.40854272,95202.0,95201.0,0.0017232]
[1732818619542,0.40654272,95202.0,95201.0,0.0017232]
[1732818619990,0.41354272,95202.0,95201.0,0.0017232]
[1732818620697,0.40954272,95202.0,95201.0,0.0017232]
[1732818621116,0.41354272,95202.0,95201.0,0.0017232]
[1732818621839,0.66354272,95202.0,95201.0,0.0017232]
[1732818622279,0.65954272,95202.0,95201.0,0.0017232]
[1732818622716,0.65754272,95202.0,95201.0,0.0017232]
[1732818622932,0.66454272,95202.0,95201.0,0.0017232]
[1732818623814,0.65954272,95202.0,95201.0,0.0017232]
[1732818624253,0.66454272,95202.0,95201.0,0.0017232]
[1732818634759,0.11584272,95202.0,95201.0,0.0017232]
[1732818634971,0.01299751,95202.0,95201.0,0.0077352]
[1732818637174,0.00399751,95202.0,95201.0,0.0077352]
[1732818637624,0.00099751,95202.0,95201.0,0.0077352]
[1732818638051,0.00299751,95202.0,95201.0,0.0077352]
[1732818638273,0.00499751,95202.0,95201.0,0.0077352]
[1732818641471,0.00299751,95202.0,95201.0,0.0077352]
[1732818641711,0.00099751,95202.0,95201.0,0.0077352]
[1732818641947,0.00499751,95202.0,95201.0,0.0077352]
[1732818642179,0.00299751,95202.0,95201.0,0.00959413]
[1732818642416,0.00299751,95202.0,95201.0,0.09009413]
[1732818642668,0.00299751,95202.0,95201.0,0.09666574]
[1732818643404,0.00099751,95202.0,95201.0,0.09480681]
[1732818643637,0.00099751,95202.0,95201.0,0.09580681]
[1732818644382,0.00099751,95202.0,95201.0,0.09766571]
[1732818645698,0.00099751,95202.0,95201.0,0.10817989]
[1732818647574,0.00099751,95202.0,95201.0,0.2955501]
[1732818647881,0.00099751,95202.0,95201.0,0.2936912]
[1732818649645,0.00099751,95202.0,95201.0,0.29374663]
[1732818650825,0.00099751,95202.0,95201.0,0.29379696]
[1732818651316,0.00099751,95202.0,95201.0,0.39664237]
[1732818651554,0.00099751,95202.0,95201.0,0.2091662]
[1732818651782,0.00099751,95202.0,95201.0,0.21102486]
[1732818652233,0.00099751,95202.0,95201.0,0.44530691]
[1732818652479,0.00099751,95202.0,95201.0,0.29030737]
[1732818652728,0.00099751,95202.0,95201.0,0.61025645]
[1732818653018,0.0008618,95209.0,95208.0,0.006012]
[1732818653273,0.0008618,95209.0,95208.0,0.2587015]
[1732818653505,0.0008618,95209.0,95208.0,0.256843]
[1732818655111,0.0008618,95209.0,95208.0,0.257843]
[1732818656271,0.0018618,95209.0,95208.0,0.263843]
[1732818659779,0.0018618,95209.0,95208.0,0.25332703]
[1732818659976,0.0018618,95209.0,95208.0,0.26383874]
[1732818660685,0.0018618,95209.0,95208.0,0.27477161]
[1732818660922,0.0018618,95209.0,95208.0,0.28791125]
[1732818661397,0.0018618,95209.0,95208.0,0.27096638]
[1732818661626,0.0018618,95209.0,95208.0,0.03009353]
[1732818661851,0.0018618,95209.0,95208.0,0.16003138]
[1732818663003,0.0008618,95209.0,95208.0,0.01358182]
[1732818663272,0.00092344,95209.0,95208.0,0.01258182]
[1732818663504,0.00092344,95209.0,95208.0,0.02309567]
[1732818663727,0.00092344,95209.0,95208.0,0.02409567]
[1732818664471,0.00092344,95209.0,95208.0,0.02609567]
[1732818665173,0.00092344,95209.0,95208.0,0.009012]
[1732818665396,0.00092344,95209.0,95208.0,0.02609695]
[1732818668966,0.00092344,95209.0,95208.0,0.01952581]
[1732818669189,0.00092344,95209.0,95208.0,0.02609694]
[1732818670423,0.00092344,95209.0,95208.0,0.03923923]
[1732818674844,0.00092344,95209.0,95208.0,0.009012]
[1732818676657,0.00092344,95209.0,95208.0,0.10265759]
[1732818677803,0.00092344,95209.0,95208.0,0.009012]
[1732818678771,0.00092344,95209.0,95208.0,0.14966427]
[1732818679002,0.00092344,95209.0,95208.0,0.1798916]
[1732818679465,0.00092344,95209.0,95208.0,0.03923929]
[1732818679705,0.00092344,95209.0,95208.0,0.22685988]
[1732818680873,0.00092344,95209.0,95208.0,0.03923929]
[1732818681821,0.00092344,95209.0,95208.0,0.27374642]
[1732818682062,0.00092344,95209.0,95208.0,0.25403295]
[1732818682329,0.00092344,95209.0,95208.0,0.27374637]
[1732818683481,0.00092344,95209.0,95208.0,0.03923924]
[1732818686263,0.15252344,95209.0,95208.0,0.02008496]
[1732818686493,0.40536865,95209.0,95208.0,0.003]
[1732818687453,0.40536865,95209.0,95208.0,0.001]
[1732818687968,0.40836865,95209.0,95208.0,0.001]
[1732818688202,0.15,95208.0,95202.0,0.0017232]
[1732818688443,0.12584521,95207.0,95202.0,0.0017232]
[1732818688666,0.023,95205.0,95202.0,0.0017232]
[1732818688903,0.023,95203.0,95202.0,0.0017232]
[1732818690091,0.023,95203.0,95191.0,0.18801626]
[1732818690092,0.01,95197.0,95191.0,0.18801626]
[1732818690338,0.023,95203.0,95191.0,0.18801626]
[1732818690339,0.033,95192.0,95191.0,0.18801626]
[1732818690566,0.01,95192.0,95191.0,0.19458911]
[1732818690799,0.0571,95192.0,95191.0,0.19458911]
[1732818691529,0.0571,95192.0,95191.0,0.00657285]
[1732818691752,0.0571,95192.0,95191.0,0.00857285]
[1732818692818,0.0571,95192.0,95191.0,0.00957285]
[1732818694245,0.0571,95192.0,95191.0,0.00757285]
[1732818694477,0.0571,95192.0,95191.0,0.00957285]
[1732818694731,0.0471,95192.0,95191.0,0.00957285]
[1732818695164,0.0471,95192.0,95191.0,0.00857285]
[1732818695392,0.0471,95192.0,95191.0,0.002]
[1732818695636,0.0571,95192.0,95191.0,0.00857273]
[1732818698403,0.0471,95192.0,95191.0,0.00857273]
[1732818698622,0.01,95197.0,95191.0,0.00857273]
[1732818698848,0.01,95197.0,95192.0,0.00657273]
[1732818699149,0.01,95197.0,95191.0,0.002]
[1732818699380,0.01,95197.0,95192.0,0.00657259]
[1732818699630,0.01,95197.0,95193.0,0.00657259]
[1732818699852,0.01,95197.0,95194.0,0.00657259]
[1732818700051,0.011,95197.0,95195.0,0.00657259]
[1732818700273,0.011,95197.0,95196.0,0.00657259]
[1732818700491,0.011,95197.0,95191.0,0.002]
[1732818700747,0.011,95197.0,95192.0,0.00657253]
[1732818700967,0.011,95197.0,95193.0,0.00657253]
[1732818701187,0.011,95197.0,95194.0,0.00657253]
[1732818701418,0.01,95197.0,95195.0,0.00657253]
[1732818701649,0.011,95197.0,95196.0,0.00657253]
[1732818701879,0.012,95197.0,95196.0,0.00657253]
[1732818702119,0.01,95197.0,95196.0,0.00657253]
[1732818702570,0.011,95197.0,95196.0,0.00657253]
[1732818702971,0.012,95197.0,95196.0,0.00657253]
[1732818703145,0.012862,95197.0,95196.0,0.00657253]
[1732818704195,0.013862,95197.0,95196.0,0.00657253]
[1732818704385,0.012862,95197.0,95196.0,0.00657253]
[1732818704765,0.002862,95197.0,95196.0,0.00657253]
[1732818704966,0.003862,95197.0,95196.0,0.00657253]
[1732818707058,0.013862,95197.0,95196.0,0.00657253]
[1732818707468,0.003862,95197.0,95196.0,0.00657253]
[1732818707897,0.013862,95197.0,95196.0,0.00657253]
[1732818711492,0.013862,95197.0,95196.0,0.01708832]
[1732818712502,0.013862,95197.0,95196.0,0.01708837]
[1732818712713,0.013862,95197.0,95196.0,0.00657245]
[1732818712932,0.26580721,95197.0,95196.0,0.00657245]
[1732818714281,0.26580721,95197.0,95180.0,0.01254529]
[1732818714455,0.08349825,95190.0,95181.0,0.0506235]
[1732818714661,0.08349825,95190.0,95182.0,0.03807821]
[1732818714878,0.08349825,95190.0,95183.0,0.03807821]
[1732818715089,0.08349825,95190.0,95174.0,0.09578398]
[1732818715090,0.08349825,95190.0,95184.0,0.02493259]
[1732818715294,0.01,95189.0,95185.0,0.02493259]
[1732818715500,0.0468,95188.0,95186.0,0.03807821]
[1732818715704,0.0468,95188.0,95187.0,0.0170893]
[1732818715911,0.0468,95188.0,95187.0,0.02493259]
[1732818716329,0.0468,95188.0,95187.0,0.03807821]
[1732818718060,0.0468,95188.0,95187.0,0.03907821]
[1732818719098,0.0468,95188.0,95187.0,0.001]
[1732818719324,0.0468,95188.0,95187.0,0.03908434]
[1732818719523,0.0468,95188.0,95187.0,0.02493872]
[1732818719697,0.0468,95188.0,95187.0,0.02593872]
[1732818719892,0.0468,95188.0,95187.0,0.02793872]
[1732818720506,0.0568,95188.0,95187.0,0.02793872]
[1732818720716,0.26874521,95188.0,95187.0,0.02793872]
[1732818720911,0.26874521,95188.0,95187.0,0.00957281]
[1732818720912,0.41874521,95188.0,95187.0,0.00957281]
[1732818721191,0.46061973,95188.0,95187.0,0.003]
[1732818721414,0.46061973,95188.0,95187.0,0.001]
[1732818721633,0.46061973,95188.0,95187.0,0.003]
[1732818721899,0.41874521,95188.0,95164.0,0.09397272]
[1732818722127,0.2955,95184.0,95169.0,0.01709259]
[1732818722353,0.023,95175.0,95170.0,0.01709259]
[1732818722568,0.08349825,95178.0,95153.0,0.14102417]
[1732818722569,0.0794,95171.0,95153.0,0.14102417]
[1732818722780,0.0794,95171.0,95169.0,0.01709287]
[1732818722781,0.18224521,95171.0,95169.0,0.01709287]
[1732818722992,0.18224521,95171.0,95170.0,0.00657418]
[1732818723235,0.18224521,95171.0,95170.0,0.00657426]
[1732818724778,0.002,95171.0,95170.0,0.00657422]
[1732818724997,0.002,95175.0,95170.0,0.00657422]
[1732818725229,0.01,95178.0,95171.0,0.00185961]
[1732818725446,0.01,95178.0,95171.0,0.00843383]
[1732818725662,0.01,95178.0,95172.0,0.00657422]
[1732818725865,0.01,95178.0,95173.0,0.00657422]
[1732818726081,0.01,95178.0,95174.0,0.00657422]
[1732818726288,0.002,95175.0,95171.0,0.00185961]
[1732818726511,0.002,95175.0,95172.0,0.00657377]
[1732818726724,0.002,95175.0,95171.0,0.00185961]
[1732818726725,0.002,95175.0,95173.0,0.00657377]
[1732818726906,0.002,95175.0,95174.0,0.00657377]
[1732818728379,0.01,95181.0,95174.0,0.00657377]
[1732818728615,0.01,95181.0,95175.0,0.00657377]
[1732818728806,0.01,95181.0,95176.0,0.00657377]
[1732818729023,0.01,95181.0,95177.0,0.00657377]
[1732818729240,0.01,95178.0,95174.0,0.002]
[1732818729448,0.01,95178.0,95175.0,0.00657374]
[1732818729656,0.01,95178.0,95176.0,0.00657374]
[1732818729883,0.01,95178.0,95174.0,0.003]
[1732818730084,0.01,95178.0,95175.0,0.00657377]
[1732818730289,0.01,95178.0,95176.0,0.00657377]
[1732818730495,0.01,95178.0,95177.0,0.00657375]
[1732818731272,0.01,95178.0,95169.0,0.01051802]
[1732818731484,0.01,95178.0,95170.0,0.00843338]
[1732818731676,0.01,95178.0,95171.0,0.00657378]
[1732818731991,0.01,95178.0,95168.0,0.001724]
[1732818731992,0.01,95178.0,95172.0,0.00843338]
[1732818732228,0.01,95178.0,95173.0,0.00657378]
[1732818732354,0.01,95178.0,95174.0,0.00657378]
[1732818732559,0.01,95178.0,95177.0,0.001]
[1732818733692,0.0564,95178.0,95177.0,0.001]
[1732818734121,0.0564,95178.0,95168.0,0.001724]
[1732818734336,0.0564,95178.0,95172.0,0.001]
[1732818734573,0.0564,95178.0,95173.0,0.00657382]
[1732818734795,0.0564,95178.0,95174.0,0.00657382]
[1732818735013,0.0564,95178.0,95168.0,0.001724]
[1732818735224,0.0574,95178.0,95169.0,0.0065739]
[1732818735434,0.0574,95178.0,95170.0,0.0065739]
[1732818735643,0.0564,95178.0,95171.0,0.0065739]
[1732818735859,0.0564,95178.0,95172.0,0.0065739]
[1732818736098,0.0474,95178.0,95173.0,0.0065739]
[1732818736322,0.0474,95178.0,95174.0,0.0065739]
[1732818736530,0.0464,95178.0,95168.0,0.00358362]
[1732818736760,0.0464,95178.0,95169.0,0.00657388]
[1732818736980,0.0464,95178.0,95170.0,0.00657388]
[1732818736981,0.0474,95178.0,95170.0,0.00657388]
[1732818737212,0.0474,95178.0,95171.0,0.00657388]
[1732818737444,0.0474,95178.0,95172.0,0.00657388]
[1732818737653,0.0474,95178.0,95173.0,0.00657388]
[1732818737873,0.0474,95178.0,95168.0,0.001724]
[1732818737874,0.0474,95178.0,95174.0,0.00657388]
[1732818738080,0.0464,95178.0,95168.0,0.001724]
[1732818738510,0.0474,95178.0,95168.0,0.001724]
[1732818739150,0.04746161,95178.0,95168.0,0.001724]
[1732818739367,0.04746161,95178.0,95169.0,0.00185963]
[1732818740060,0.04646161,95178.0,95168.0,0.001724]
[1732818740267,0.04646161,95178.0,95170.0,0.00657387]
[1732818740502,0.04646161,95178.0,95171.0,0.00185962]
[1732818740737,0.04646161,95178.0,95170.0,0.00657387]
[1732818740951,0.04646161,95178.0,95170.0,0.00843349]
[1732818741639,0.04746161,95178.0,95170.0,0.00185962]
[1732818741874,0.00106161,95178.0,95170.0,0.00185962]
[1732818742115,6.161e-05,95178.0,95171.0,0.00185963]
[1732818742326,0.00106161,95178.0,95171.0,0.00185963]
[1732818742591,0.00106161,95178.0,95170.0,0.17582104]
[1732818742817,0.00092361,95178.0,95172.0,0.01709089]
[1732818743032,0.00092361,95178.0,95172.0,0.00657342]
[1732818743684,0.04762361,95178.0,95172.0,0.00657342]
[1732818744135,0.04762361,95178.0,95170.0,0.001]
[1732818744360,0.04762361,95178.0,95168.0,0.001724]
[1732818744566,0.04762361,95178.0,95172.0,0.001]
[1732818745267,0.04762361,95178.0,95173.0,0.00657348]
[1732818745475,0.04762361,95178.0,95174.0,0.00657348]
[1732818745698,0.04762361,95178.0,95175.0,0.00657348]
[1732818745913,0.04762361,95178.0,95176.0,0.00657348]
[1732818746135,0.04762361,95178.0,95177.0,0.00657348]
[1732818747221,0.00092361,95178.0,95177.0,0.00657348]
[1732818747658,0.00092361,95178.0,95177.0,0.00757348]
[1732818748308,0.00092361,95178.0,95177.0,0.01809049]
[1732818748549,0.00092361,95178.0,95177.0,0.00757348]
[1732818748999,0.00092361,95178.0,95177.0,0.01809055]
[1732818750077,0.00092361,95178.0,95177.0,0.00757348]
[1732818755679,0.04862361,95178.0,95177.0,0.00757348]
[1732818757524,0.04862361,95178.0,95177.0,0.001]
[1732818757741,0.04862361,95178.0,95177.0,0.00757338]
[1732818758854,0.15368961,95178.0,95177.0,0.00757338]
[1732818763906,0.15368961,95178.0,95177.0,0.001]
[1732818764630,0.105068,95176.0,95175.0,0.09416716]
[1732818764850,0.105073,95172.0,95168.0,0.23714691]
[1732818765091,0.105074,95171.0,95169.0,0.00657396]
[1732818765314,0.105074,95171.0,95170.0,0.00657396]
[1732818766616,0.105072,95172.0,95170.0,0.00657396]
[1732818766835,0.105072,95172.0,95171.0,0.00657396]
[1732818768517,0.105072,95172.0,95171.0,0.00957396]
[1732818769691,0.105072,95172.0,95171.0,0.00757396]
[1732818770614,0.105072,95172.0,95171.0,0.00657396]
[1732818771069,0.106072,95172.0,95171.0,0.00657396]
[1732818780828,0.001,95172.0,95171.0,0.11350767]
[1732818781076,0.001,95172.0,95171.0,0.25112597]
[1732818781295,0.001,95172.0,95171.0,0.24926626]
[1732818781739,0.00092361,95178.0,95172.0,0.105072]
[1732818781958,0.00092361,95178.0,95174.0,0.14127538]
[1732818782189,0.00092361,95178.0,95175.0,0.02494109]
[1732818782444,0.00092361,95178.0,95177.0,0.105067]
[1732818782715,0.00092361,95178.0,95177.0,0.12215926]
[1732818782931,0.00092361,95178.0,95177.0,0.39902363]
[1732818783149,0.00092361,95178.0,95177.0,0.21060809]
[1732818783395,0.00092361,95178.0,95177.0,0.22560996]
[1732818783627,0.00092361,95178.0,95177.0,0.22374804]
[1732818783842,0.00092361,95178.0,95177.0,0.32659325]
[1732818784776,0.00092361,95178.0,95177.0,0.37309325]
[1732818785466,0.00092361,95178.0,95177.0,0.37609325]
[1732818786396,0.00092361,95178.0,95177.0,0.37409325]
[1732818786581,0.00092361,95178.0,95177.0,0.37609325]
[1732818786846,0.00092361,95178.0,95177.0,0.37309077]
[1732818787065,0.00092361,95178.0,95177.0,0.37409077]
[1732818787551,0.00092361,95178.0,95177.0,0.37309077]
[1732818787980,0.00092361,95178.0,95177.0,0.37509077]
[1732818788166,0.00192361,95178.0,95177.0,0.37709077]
[1732818789445,0.00192361,95178.0,95177.0,0.33059077]
[1732818790105,0.00192361,95178.0,95177.0,0.31744628]
[1732818790565,0.00192361,95178.0,95177.0,0.45850686]
[1732818792959,0.00192361,95178.0,95177.0,0.4584928]
[1732818793395,0.00192361,95178.0,95177.0,0.31744628]
[1732818793670,0.00192361,95178.0,95177.0,0.31744768]
[1732818794374,0.00192361,95178.0,95177.0,0.3778942]
[1732818794592,0.00192361,95178.0,95177.0,0.23684768]
[1732818796403,0.00192361,95178.0,95177.0,0.02893547]
[1732818796644,0.10698961,95178.0,95177.0,0.12294781]
[1732818796878,0.15658961,95178.0,95177.0,0.01841902]
[1732818797127,0.15658961,95178.0,95177.0,0.01840465]
[1732818797355,0.15658961,95178.0,95177.0,0.01640465]
[1732818797596,0.15658961,95178.0,95177.0,0.01740465]